[Event "*** Titled Tuesday Blitz"]
[Site "Chess.com"]
[Date "2018.04.03"]
[Round "6"]
[White "335394862"]
[Black "pedromartinez91"]
[Result "1/2-1/2"]
[WhiteElo "2312"]
[BlackElo "2371"]
[TimeControl "180+2"]
[EndTime "14:22:23 PDT"]
[Termination "Game drawn - insufficient material"]

1. e4 {[%clk 0:03:01.9]} 1... e6 {[%clk 0:02:59.1]} 2. d4 {[%clk 0:03:02.6]}
2... d5 {[%clk 0:02:59.7]} 3. Nd2 {[%clk 0:03:03.9]} 3... c5 {[%clk 0:02:59.6]}
4. exd5 {[%clk 0:03:03.6]} 4... Qxd5 {[%clk 0:03:00]} 5. dxc5 {[%clk 0:03:03.1]}
5... Qxc5 {[%clk 0:02:52.8]} 6. Ngf3 {[%clk 0:03:03.3]} 6... a6 {[%clk
0:02:52.1]} 7. Bd3 {[%clk 0:03:03.9]} 7... Nf6 {[%clk 0:02:50.1]} 8. Qe2 {[%clk
0:03:04.7]} 8... Be7 {[%clk 0:02:49.1]} 9. O-O {[%clk 0:03:05]} 9... O-O {[%clk
0:02:47.5]} 10. Nb3 {[%clk 0:03:05.3]} 10... Qc7 {[%clk 0:02:47]} 11. Ne5 {[%clk
0:03:02.6]} 11... Nbd7 {[%clk 0:02:44]} 12. Bf4 {[%clk 0:02:56.7]} 12... Bd6
{[%clk 0:02:28.4]} 13. Rfe1 {[%clk 0:02:48.1]} 13... Nxe5 {[%clk 0:02:28.7]} 14.
Bxe5 {[%clk 0:02:50]} 14... Bxe5 {[%clk 0:02:30.2]} 15. Qxe5 {[%clk 0:02:51.9]}
15... Qxe5 {[%clk 0:02:31.3]} 16. Rxe5 {[%clk 0:02:53.8]} 16... Bd7 {[%clk
0:02:31.9]} 17. Re2 {[%clk 0:02:43.4]} 17... Rfd8 {[%clk 0:02:20.1]} 18. Rd1
{[%clk 0:02:36.8]} 18... Kf8 {[%clk 0:02:19.6]} 19. Red2 {[%clk 0:02:34]} 19...
Ke7 {[%clk 0:02:18.3]} 20. f3 {[%clk 0:02:27.7]} 20... Bc6 {[%clk 0:02:18.3]}
21. Kf2 {[%clk 0:02:28.4]} 21... Nd5 {[%clk 0:02:13.5]} 22. Be4 {[%clk
0:02:25.7]} 22... f5 {[%clk 0:02:10.7]} 23. Bxd5 {[%clk 0:02:21]} 23... Bxd5
{[%clk 0:02:09.7]} 24. Nd4 {[%clk 0:02:22]} 24... g6 {[%clk 0:02:00.2]} 25. b3
{[%clk 0:02:20.3]} 25... b5 {[%clk 0:02:00.5]} 26. c4 {[%clk 0:02:14.6]} 26...
bxc4 {[%clk 0:01:55.6]} 27. bxc4 {[%clk 0:02:16.5]} 27... Bb7 {[%clk 0:01:54.9]}
28. Rb2 {[%clk 0:02:13.6]} 28... Rd7 {[%clk 0:01:41.6]} 29. Rdb1 {[%clk
0:01:58.4]} 29... Ra7 {[%clk 0:01:31.6]} 30. Nb3 {[%clk 0:01:54.1]} 30... Rc7
{[%clk 0:01:12.5]} 31. c5 {[%clk 0:01:51.8]} 31... Bd5 {[%clk 0:01:12]} 32. Rc1
{[%clk 0:01:42.9]} 32... Rab7 {[%clk 0:01:03.6]} 33. Rc3 {[%clk 0:01:36.3]}
33... a5 {[%clk 0:00:44.5]} 34. Rbc2 {[%clk 0:01:36.9]} 34... Bxb3 {[%clk
0:00:38.3]} 35. Rxb3 {[%clk 0:01:38.8]} 35... Rxb3 {[%clk 0:00:35.4]} 36. axb3
{[%clk 0:01:40.7]} 36... e5 {[%clk 0:00:36.5]} 37. f4 {[%clk 0:01:24.9]} 37...
Ke6 {[%clk 0:00:34.5]} 38. fxe5 {[%clk 0:01:23.6]} 38... Kxe5 {[%clk 0:00:36.4]}
39. Ke3 {[%clk 0:01:20.2]} 39... Kd5 {[%clk 0:00:33.7]} 40. Ra2 {[%clk
0:01:01.7]} 40... Rxc5 {[%clk 0:00:33.9]} 41. Kd3 {[%clk 0:01:02.1]} 41... Rb5
{[%clk 0:00:31.3]} 42. Kc3 {[%clk 0:01:02.3]} 42... Rc5+ {[%clk 0:00:31.4]} 43.
Kd3 {[%clk 0:01:03.4]} 43... Rb5 {[%clk 0:00:26.9]} 44. Kc3 {[%clk 0:01:03.5]}
44... f4 {[%clk 0:00:28.1]} 45. Re2 {[%clk 0:01:01.1]} 45... Rc5+ {[%clk
0:00:24.9]} 46. Kd3 {[%clk 0:01:02]} 46... Rc7 {[%clk 0:00:23.8]} 47. Ra2 {[%clk
0:00:58.2]} 47... Ra7 {[%clk 0:00:21.5]} 48. h4 {[%clk 0:00:59.2]} 48... h6
{[%clk 0:00:21.7]} 49. Ra4 {[%clk 0:00:58.1]} 49... g5 {[%clk 0:00:22.5]} 50.
hxg5 {[%clk 0:00:59.3]} 50... hxg5 {[%clk 0:00:24.4]} 51. Ke2 {[%clk 0:01:00.9]}
51... Ke5 {[%clk 0:00:23.7]} 52. g3 {[%clk 0:01:00.8]} 52... fxg3 {[%clk
0:00:22.7]} 53. Kf3 {[%clk 0:01:01.7]} 53... Kf6 {[%clk 0:00:23]} 54. Kxg3
{[%clk 0:01:02]} 54... Rb7 {[%clk 0:00:24.7]} 55. Rxa5 {[%clk 0:01:02.1]} 55...
Rxb3+ {[%clk 0:00:25.8]} 56. Kg4 {[%clk 0:01:03.5]} 56... Rb4+ {[%clk
0:00:27.1]} 57. Kg3 {[%clk 0:01:04.6]} 57... Rf4 {[%clk 0:00:28.8]} 58. Rb5
{[%clk 0:01:03]} 58... Kg6 {[%clk 0:00:30]} 59. Rb8 {[%clk 0:01:02.5]} 59... Rf6
{[%clk 0:00:30.1]} 60. Rb5 {[%clk 0:01:01.4]} 60... Ra6 {[%clk 0:00:30.5]} 61.
Rb8 {[%clk 0:00:57.9]} 61... Ra7 {[%clk 0:00:30.5]} 62. Rb6+ {[%clk 0:00:58.3]}
62... Kh5 {[%clk 0:00:31]} 63. Rb5 {[%clk 0:00:56.4]} 63... Ra3+ {[%clk
0:00:31.6]} 64. Kg2 {[%clk 0:00:58]} 64... Kh4 {[%clk 0:00:32]} 65. Rb4+ {[%clk
0:00:57.5]} 65... g4 {[%clk 0:00:33]} 66. Rb8 {[%clk 0:00:59.2]} 66... Ra2+
{[%clk 0:00:32.3]} 67. Kg1 {[%clk 0:01:00.1]} 67... Kh3 {[%clk 0:00:33.6]} 68.
Rb3+ {[%clk 0:00:18.3]} 68... g3 {[%clk 0:00:32.8]} 69. Rb1 {[%clk 0:00:19]}
69... Rg2+ {[%clk 0:00:33]} 70. Kh1 {[%clk 0:00:19.4]} 70... Rc2 {[%clk
0:00:33.9]} 71. Kg1 {[%clk 0:00:19.2]} 71... Rh2 {[%clk 0:00:34.3]} 72. Ra1
{[%clk 0:00:18.6]} 72... Rg2+ {[%clk 0:00:32.9]} 73. Kh1 {[%clk 0:00:19.3]}
73... Rc2 {[%clk 0:00:31.4]} 74. Kg1 {[%clk 0:00:18.7]} 74... Rc4 {[%clk
0:00:32.5]} 75. Rb1 {[%clk 0:00:19.3]} 75... Rf4 {[%clk 0:00:33.4]} 76. Ra1
{[%clk 0:00:20]} 76... Kg4 {[%clk 0:00:34.3]} 77. Rb1 {[%clk 0:00:20.6]} 77...
Kh3 {[%clk 0:00:34.1]} 78. Ra1 {[%clk 0:00:21.6]} 78... Rf2 {[%clk 0:00:33.4]}
79. Rb1 {[%clk 0:00:21.4]} 79... Rg2+ {[%clk 0:00:34.9]} 80. Kh1 {[%clk
0:00:22.4]} 80... Ra2 {[%clk 0:00:34.5]} 81. Kg1 {[%clk 0:00:22.9]} 81... Ra4
{[%clk 0:00:35.2]} 82. Rc1 {[%clk 0:00:23.6]} 82... Rb4 {[%clk 0:00:35.5]} 83.
Ra1 {[%clk 0:00:24.7]} 83... Kg4 {[%clk 0:00:36.5]} 84. Rc1 {[%clk 0:00:25.2]}
84... Rb3 {[%clk 0:00:37.7]} 85. Ra1 {[%clk 0:00:24.2]} 85... Kf3 {[%clk
0:00:38.9]} 86. Rf1+ {[%clk 0:00:24.7]} 86... Ke2 {[%clk 0:00:39.8]} 87. Kg2
{[%clk 0:00:24.3]} 87... Rb7 {[%clk 0:00:31.8]} 88. Rf6 {[%clk 0:00:22.8]} 88...
Rg7 {[%clk 0:00:30.8]} 89. Rf3 {[%clk 0:00:23.4]} 89... Re7 {[%clk 0:00:28.5]}
90. Rxg3 {[%clk 0:00:24]} 90... Re3 {[%clk 0:00:28.9]} 91. Rxe3+ {[%clk
0:00:24.8]} 91... Kxe3 {[%clk 0:00:30.4]} 1/2-1/2

[Event "*** Titled Tuesday Blitz"]
[Site "Chess.com"]
[Date "2018.04.03"]
[Round "6"]
[White "comedy_of_errors"]
[Black "Doraemon7"]
[Result "1-0"]
[WhiteElo "2433"]
[BlackElo "2427"]
[TimeControl "180+2"]
[EndTime "14:23:40 PDT"]
[Termination "comedy_of_errors won by checkmate"]

1. Nf3 {[%clk 0:03:01.9]} 1... d5 {[%clk 0:03:00.9]} 2. g3 {[%clk 0:03:02.5]}
2... c6 {[%clk 0:03:01]} 3. Bg2 {[%clk 0:03:04]} 3... Bf5 {[%clk 0:03:01.4]} 4.
O-O {[%clk 0:03:05.2]} 4... e6 {[%clk 0:03:02.6]} 5. d3 {[%clk 0:03:06.2]} 5...
h6 {[%clk 0:03:02.8]} 6. c4 {[%clk 0:03:03.8]} 6... Nd7 {[%clk 0:03:01.7]} 7.
cxd5 {[%clk 0:02:56.3]} 7... exd5 {[%clk 0:03:01.4]} 8. Qb3 {[%clk 0:02:55.6]}
8... Qb6 {[%clk 0:02:56.6]} 9. Qc2 {[%clk 0:02:56.6]} 9... Ngf6 {[%clk 0:02:56]}
10. Nc3 {[%clk 0:02:57.9]} 10... Bh7 {[%clk 0:02:26.9]} 11. e4 {[%clk
0:02:57.7]} 11... dxe4 {[%clk 0:02:27.7]} 12. dxe4 {[%clk 0:02:59.6]} 12... Be7
{[%clk 0:02:22.1]} 13. Be3 {[%clk 0:03:00.7]} 13... Qa5 {[%clk 0:02:18.6]} 14.
h3 {[%clk 0:03:01.4]} 14... O-O {[%clk 0:02:18.1]} 15. Rfe1 {[%clk 0:02:58.4]}
15... Rfe8 {[%clk 0:02:09.5]} 16. Nd4 {[%clk 0:02:57.2]} 16... Rad8 {[%clk
0:01:56]} 17. a3 {[%clk 0:02:50.5]} 17... Qc7 {[%clk 0:01:54.6]} 18. Rad1 {[%clk
0:02:33.8]} 18... Nc5 {[%clk 0:01:29.1]} 19. b4 {[%clk 0:02:33]} 19... Ncxe4
{[%clk 0:01:00.7]} 20. Nxe4 {[%clk 0:02:31.3]} 20... Nxe4 {[%clk 0:00:58.7]} 21.
Bxe4 {[%clk 0:02:28.7]} 21... Bxe4 {[%clk 0:01:00.2]} 22. Qxe4 {[%clk
0:02:27.5]} 22... Bxb4 {[%clk 0:01:01.5]} 23. Qxe8+ {[%clk 0:02:20.2]} 23...
Rxe8 {[%clk 0:00:59.9]} 24. axb4 {[%clk 0:02:22.1]} 24... Qd6 {[%clk 0:00:46.1]}
25. b5 {[%clk 0:02:12.6]} 25... Qd7 {[%clk 0:00:38.3]} 26. bxc6 {[%clk 0:02:11]}
26... bxc6 {[%clk 0:00:40.2]} 27. Kh2 {[%clk 0:02:09.4]} 27... Qd5 {[%clk
0:00:36.6]} 28. Rc1 {[%clk 0:02:03.9]} 28... c5 {[%clk 0:00:28.8]} 29. Nb5
{[%clk 0:02:04.1]} 29... Qb3 {[%clk 0:00:20.1]} 30. Rxc5 {[%clk 0:02:02.2]}
30... a6 {[%clk 0:00:21.4]} 31. Nc7 {[%clk 0:02:01]} 31... Rc8 {[%clk
0:00:14.8]} 32. Nxa6 {[%clk 0:02:00.6]} 32... Rd8 {[%clk 0:00:15.9]} 33. Nc7
{[%clk 0:01:59.6]} 33... Qb4 {[%clk 0:00:15.7]} 34. Rec1 {[%clk 0:01:56.1]}
34... Qe4 {[%clk 0:00:14.2]} 35. Nb5 {[%clk 0:01:54.3]} 35... Qf3 {[%clk
0:00:14.4]} 36. Nd4 {[%clk 0:01:52.9]} 36... Qb7 {[%clk 0:00:14.3]} 37. Rc7
{[%clk 0:01:53.3]} 37... Qa6 {[%clk 0:00:15.5]} 38. R1c6 {[%clk 0:01:53.5]}
38... Qd3 {[%clk 0:00:16.6]} 39. Rc8 {[%clk 0:01:53.8]} 39... Rxc8 {[%clk
0:00:17.3]} 40. Rxc8+ {[%clk 0:01:55.7]} 40... Kh7 {[%clk 0:00:19.2]} 41. Rc7
{[%clk 0:01:55.3]} 41... Kg6 {[%clk 0:00:20.2]} 42. h4 {[%clk 0:01:55.2]} 42...
Qd1 {[%clk 0:00:18]} 43. Rc5 {[%clk 0:01:55.9]} 43... Kh7 {[%clk 0:00:18.8]} 44.
h5 {[%clk 0:01:52.3]} 44... Kg8 {[%clk 0:00:20]} 45. Kg2 {[%clk 0:01:51]} 45...
Kh7 {[%clk 0:00:20.7]} 46. Rf5 {[%clk 0:01:46]} 46... Kg8 {[%clk 0:00:20.4]} 47.
Ra5 {[%clk 0:01:44.8]} 47... Kh7 {[%clk 0:00:20.1]} 48. Rb5 {[%clk 0:01:41.5]}
48... Kg8 {[%clk 0:00:20.3]} 49. Rf5 {[%clk 0:01:43.1]} 49... Qd3 {[%clk
0:00:19]} 50. Rf4 {[%clk 0:01:40.2]} 50... Qd1 {[%clk 0:00:19.5]} 51. g4 {[%clk
0:01:40.4]} 51... Kh7 {[%clk 0:00:19.6]} 52. Nf3 {[%clk 0:01:37.9]} 52... Qd5
{[%clk 0:00:19.5]} 53. Rf5 {[%clk 0:01:37.5]} 53... Qe4 {[%clk 0:00:19.8]} 54.
Kg3 {[%clk 0:01:38.2]} 54... Qc4 {[%clk 0:00:20.3]} 55. Ne5 {[%clk 0:01:37.2]}
55... Qc7 {[%clk 0:00:21.8]} 56. Bf4 {[%clk 0:01:37.7]} 56... Qc3+ {[%clk
0:00:23]} 57. Nf3 {[%clk 0:01:37.1]} 57... Qb3 {[%clk 0:00:23]} 58. Be5 {[%clk
0:01:36.9]} 58... Kg8 {[%clk 0:00:23.4]} 59. g5 {[%clk 0:01:36.6]} 59... hxg5
{[%clk 0:00:23.3]} 60. Rxg5 {[%clk 0:01:38.5]} 60... g6 {[%clk 0:00:15.6]} 61.
hxg6 {[%clk 0:01:39]} 61... fxg6 {[%clk 0:00:17.2]} 62. Rxg6+ {[%clk 0:01:40]}
62... Kf7 {[%clk 0:00:18.8]} 63. Rf6+ {[%clk 0:01:40.9]} 63... Ke7 {[%clk
0:00:19.9]} 64. Rf4 {[%clk 0:01:40.3]} 64... Qd3 {[%clk 0:00:20.6]} 65. Rg4
{[%clk 0:01:40.9]} 65... Kf7 {[%clk 0:00:20.3]} 66. Bf4 {[%clk 0:01:41.5]} 66...
Qf1 {[%clk 0:00:21.4]} 67. Be3 {[%clk 0:01:38.9]} 67... Kf8 {[%clk 0:00:21.3]}
68. Rd4 {[%clk 0:01:37.9]} 68... Kf7 {[%clk 0:00:22.1]} 69. Rd6 {[%clk
0:01:36.3]} 69... Ke7 {[%clk 0:00:22.9]} 70. Bc5 {[%clk 0:01:35.6]} 70... Kf7
{[%clk 0:00:24.2]} 71. Ne5+ {[%clk 0:01:33.9]} 71... Kg7 {[%clk 0:00:25.6]} 72.
Rg6+ {[%clk 0:01:32.5]} 72... Kh7 {[%clk 0:00:26.7]} 73. Kf4 {[%clk 0:01:28.9]}
73... Qc1+ {[%clk 0:00:26.2]} 74. Be3 {[%clk 0:01:30.3]} 74... Qa1 {[%clk
0:00:23]} 75. Kg5 {[%clk 0:01:27.7]} 75... Qg1+ {[%clk 0:00:23.1]} 76. Kf6
{[%clk 0:01:28.8]} 76... Qa1 {[%clk 0:00:07.1]} 77. Rg7+ {[%clk 0:01:28.9]}
77... Kh8 {[%clk 0:00:08.6]} 78. Re7 {[%clk 0:01:23]} 78... Kg8 {[%clk
0:00:06.9]} 79. f4 {[%clk 0:01:20.7]} 79... Qa6+ {[%clk 0:00:06.4]} 80. Re6
{[%clk 0:01:20.8]} 80... Qa1 {[%clk 0:00:07.6]} 81. f5 {[%clk 0:01:21.1]} 81...
Qh1 {[%clk 0:00:08.4]} 82. Ng6 {[%clk 0:01:18.6]} 82... Qa1+ {[%clk 0:00:07.2]}
83. Re5 {[%clk 0:01:19.1]} 83... Kh7 {[%clk 0:00:06.5]} 84. Bf4 {[%clk
0:01:16.7]} 84... Qb2 {[%clk 0:00:06.1]} 85. Kf7 {[%clk 0:01:17.5]} 85... Qb3+
{[%clk 0:00:03.4]} 86. Re6 {[%clk 0:01:17]} 86... Qd5 {[%clk 0:00:03.2]} 87. Be5
{[%clk 0:01:09.3]} 87... Qd7+ {[%clk 0:00:02.8]} 88. Ne7 {[%clk 0:01:10.1]}
88... Qd5 {[%clk 0:00:04.7]} 89. f6 {[%clk 0:01:00.9]} 89... Qc4 {[%clk
0:00:04.9]} 90. Nf5 {[%clk 0:00:59.4]} 90... Qb3 {[%clk 0:00:02.4]} 91. Nd6
{[%clk 0:00:55.3]} 91... Qa2 {[%clk 0:00:02.9]} 92. Ke7 {[%clk 0:00:55]} 92...
Qa7+ {[%clk 0:00:04.1]} 93. Kf8 {[%clk 0:00:56.2]} 93... Qa8+ {[%clk 0:00:05.6]}
94. Re8 {[%clk 0:00:56.8]} 94... Qd5 {[%clk 0:00:07.5]} 95. f7 {[%clk
0:00:54.3]} 95... Kg6 {[%clk 0:00:08.6]} 96. Kg8 {[%clk 0:00:55.1]} 96... Qb3
{[%clk 0:00:06.7]} 97. Bg7 {[%clk 0:00:51]} 97... Qd5 {[%clk 0:00:07.2]} 98. Rd8
{[%clk 0:00:51.2]} 98... Qb3 {[%clk 0:00:07.5]} 99. Rd7 {[%clk 0:00:47.8]} 99...
Qe6 {[%clk 0:00:08.1]} 100. Ra7 {[%clk 0:00:47.4]} 100... Qd5 {[%clk 0:00:08.6]}
101. Ra6 {[%clk 0:00:47]} 101... Kh5 {[%clk 0:00:04.6]} 102. Kh8 {[%clk
0:00:47.8]} 102... Kg6 {[%clk 0:00:05.1]} 103. f8=Q {[%clk 0:00:30.5]} 103...
Qh5+ {[%clk 0:00:05.2]} 104. Bh6 {[%clk 0:00:31.9]} 104... Qe5+ {[%clk
0:00:05.3]} 105. Qg7+ {[%clk 0:00:32.5]} 105... Kh5 {[%clk 0:00:03]} 106. Qxe5+
{[%clk 0:00:32.6]} 106... Kxh6 {[%clk 0:00:04.9]} 107. Nf7# {[%clk 0:00:32]} 1-0

[Event "*** Titled Tuesday Blitz"]
[Site "Chess.com"]
[Date "2018.04.03"]
[Round "7"]
[White "Zaven_ChessMood"]
[Black "lachesisQ"]
[Result "1/2-1/2"]
[WhiteElo "2823"]
[BlackElo "2912"]
[TimeControl "180+2"]
[EndTime "14:27:05 PDT"]
[Termination "Game drawn by agreement"]

1. e4 {[%clk 0:03:01.9]} 1... c5 {[%clk 0:03:01]} 2. Nf3 {[%clk 0:03:02.4]} 2...
d6 {[%clk 0:03:02.4]} 3. d4 {[%clk 0:03:03.5]} 3... cxd4 {[%clk 0:03:04.3]} 4.
Nxd4 {[%clk 0:03:03.6]} 4... Nf6 {[%clk 0:03:05.9]} 5. Nc3 {[%clk 0:03:05]} 5...
a6 {[%clk 0:03:07.8]} 6. Be3 {[%clk 0:03:06.2]} 6... e5 {[%clk 0:03:08.4]} 7.
Nf3 {[%clk 0:03:06.7]} 7... Nc6 {[%clk 0:03:07.2]} 8. Bc4 {[%clk 0:03:05]} 8...
Be6 {[%clk 0:03:02.9]} 9. Bb3 {[%clk 0:03:03.4]} 9... Na5 {[%clk 0:03:02.8]} 10.
Bg5 {[%clk 0:03:01.8]} 10... Nxb3 {[%clk 0:03:01.4]} 11. axb3 {[%clk 0:02:59.9]}
11... Be7 {[%clk 0:03:02.6]} 12. Bxf6 {[%clk 0:03:00.9]} 12... Bxf6 {[%clk
0:03:03.5]} 13. Nd5 {[%clk 0:03:02]} 13... Be7 {[%clk 0:02:47.8]} 14. O-O {[%clk
0:03:01.5]} 14... O-O {[%clk 0:02:49]} 15. Qd3 {[%clk 0:02:59.9]} 15... Rc8
{[%clk 0:02:48.6]} 16. c3 {[%clk 0:02:57.6]} 16... Bg5 {[%clk 0:02:44.1]} 17.
Rfe1 {[%clk 0:02:51]} 17... Bh6 {[%clk 0:02:44.7]} 18. Rad1 {[%clk 0:02:43.9]}
18... g6 {[%clk 0:02:38.1]} 19. Nd2 {[%clk 0:02:39.1]} 19... f5 {[%clk
0:02:23.7]} 20. exf5 {[%clk 0:02:35.9]} 20... gxf5 {[%clk 0:02:22.6]} 21. Nc4
{[%clk 0:02:32.6]} 1/2-1/2

[Event "*** Titled Tuesday Blitz"]
[Site "Chess.com"]
[Date "2018.04.03"]
[Round "7"]
[White "GM_dmitrij"]
[Black "AkshatChandra"]
[Result "0-1"]
[WhiteElo "2696"]
[BlackElo "2814"]
[TimeControl "180+2"]
[EndTime "14:27:22 PDT"]
[Termination "AkshatChandra won by checkmate"]

1. e4 {[%clk 0:03:01.9]} 1... e5 {[%clk 0:03:01.1]} 2. Nf3 {[%clk 0:03:02.7]}
2... Nc6 {[%clk 0:03:03]} 3. Bb5 {[%clk 0:03:03]} 3... a6 {[%clk 0:03:04.4]} 4.
Ba4 {[%clk 0:03:04.2]} 4... Nf6 {[%clk 0:03:05.5]} 5. O-O {[%clk 0:03:05.4]}
5... Be7 {[%clk 0:03:06.8]} 6. d3 {[%clk 0:03:06.3]} 6... b5 {[%clk 0:03:07.5]}
7. Bb3 {[%clk 0:03:07.7]} 7... d6 {[%clk 0:03:08.6]} 8. a3 {[%clk 0:03:08.3]}
8... O-O {[%clk 0:03:02.2]} 9. Nc3 {[%clk 0:03:08.7]} 9... Bg4 {[%clk 0:03:03]}
10. Be3 {[%clk 0:03:09.2]} 10... Nd4 {[%clk 0:03:01.1]} 11. Bxd4 {[%clk
0:03:10.2]} 11... exd4 {[%clk 0:03:03]} 12. Nd5 {[%clk 0:03:11.8]} 12... c6
{[%clk 0:02:57.8]} 13. Nxe7+ {[%clk 0:03:06.4]} 13... Qxe7 {[%clk 0:02:58.6]}
14. h3 {[%clk 0:03:08.3]} 14... Bh5 {[%clk 0:02:57]} 15. g4 {[%clk 0:03:01.4]}
15... Nxg4 {[%clk 0:02:57.5]} 16. hxg4 {[%clk 0:03:03.3]} 16... Bxg4 {[%clk
0:02:59.4]} 17. Kg2 {[%clk 0:02:59.4]} 17... Kh8 {[%clk 0:02:13.2]} 18. Qd2
{[%clk 0:02:53.4]} 18... f5 {[%clk 0:02:08.8]} 19. Nh2 {[%clk 0:02:53]} 19...
Qh4 {[%clk 0:02:04.7]} 20. Rg1 {[%clk 0:02:14]} 20... Qh3+ {[%clk 0:02:02.1]}
21. Kh1 {[%clk 0:02:08.9]} 21... Bf3+ {[%clk 0:02:03.2]} 22. Rg2 {[%clk
0:02:10.2]} 22... Qxg2# {[%clk 0:02:04]} 0-1

[Event "*** Titled Tuesday Blitz"]
[Site "Chess.com"]
[Date "2018.04.03"]
[Round "7"]
[White "AndrewMcStone"]
[Black "MFBerna"]
[Result "1-0"]
[WhiteElo "2092"]
[BlackElo "2265"]
[TimeControl "180+2"]
[EndTime "14:27:51 PDT"]
[Termination "AndrewMcStone won by resignation"]

1. d4 {[%clk 0:03:01.8]} 1... Nf6 {[%clk 0:03:00.2]} 2. c4 {[%clk 0:03:02.4]}
2... g6 {[%clk 0:03:01.1]} 3. Nc3 {[%clk 0:03:03.6]} 3... d5 {[%clk 0:03:00.5]}
4. cxd5 {[%clk 0:03:02.7]} 4... Nxd5 {[%clk 0:03:02.4]} 5. Bd2 {[%clk
0:03:03.9]} 5... Bg7 {[%clk 0:03:03]} 6. e4 {[%clk 0:03:04.7]} 6... Nxc3 {[%clk
0:03:04.3]} 7. Bxc3 {[%clk 0:03:05.5]} 7... O-O {[%clk 0:03:06.2]} 8. Be2 {[%clk
0:03:03.5]} 8... c5 {[%clk 0:03:07.1]} 9. d5 {[%clk 0:03:03]} 9... e6 {[%clk
0:03:02.9]} 10. Nf3 {[%clk 0:02:45.1]} 10... exd5 {[%clk 0:03:02.8]} 11. exd5
{[%clk 0:02:45.8]} 11... Nd7 {[%clk 0:02:59.8]} 12. Bxg7 {[%clk 0:02:26.3]}
12... Kxg7 {[%clk 0:03:00.6]} 13. Qd2 {[%clk 0:02:25.7]} 13... Qf6 {[%clk
0:02:57.5]} 14. O-O {[%clk 0:02:20.6]} 14... Rd8 {[%clk 0:02:55.2]} 15. Rad1
{[%clk 0:02:18.1]} 15... Nb6 {[%clk 0:02:56.1]} 16. Qc3 {[%clk 0:01:07.4]} 16...
Qxc3 {[%clk 0:02:52.7]} 17. bxc3 {[%clk 0:01:07.6]} 17... Nxd5 {[%clk 0:02:53]}
18. c4 {[%clk 0:01:07.3]} 18... Nc3 {[%clk 0:02:53.8]} 19. Rxd8 {[%clk 0:01:05]}
19... Nxe2+ {[%clk 0:02:54.6]} 20. Kh1 {[%clk 0:01:06.2]} 20... b6 {[%clk
0:02:55.9]} 21. Re1 {[%clk 0:01:03.1]} 1-0

[Event "*** Titled Tuesday Blitz"]
[Site "Chess.com"]
[Date "2018.04.03"]
[Round "7"]
[White "Bad4life"]
[Black "Supernotar"]
[Result "0-1"]
[WhiteElo "2386"]
[BlackElo "2226"]
[TimeControl "180+2"]
[EndTime "14:28:10 PDT"]
[Termination "Supernotar won by checkmate"]

1. e4 {[%clk 0:03:01.9]} 1... c6 {[%clk 0:03:00.2]} 2. Nc3 {[%clk 0:03:02.7]}
2... d5 {[%clk 0:03:00.6]} 3. Qe2 {[%clk 0:03:03.2]} 3... d4 {[%clk 0:02:57.6]}
4. Nd1 {[%clk 0:03:04.2]} 4... e5 {[%clk 0:02:57.8]} 5. g3 {[%clk 0:03:04.7]}
5... Bd6 {[%clk 0:02:56.4]} 6. f4 {[%clk 0:03:04.2]} 6... exf4 {[%clk
0:02:46.9]} 7. e5 {[%clk 0:03:05.1]} 7... Bc7 {[%clk 0:02:45.9]} 8. gxf4 {[%clk
0:03:06]} 8... Qh4+ {[%clk 0:02:45.2]} 9. Qf2 {[%clk 0:03:06.7]} 9... Qxf2+
{[%clk 0:02:45.4]} 10. Nxf2 {[%clk 0:03:08.1]} 10... c5 {[%clk 0:02:45.2]} 11.
Nf3 {[%clk 0:03:09]} 11... Nc6 {[%clk 0:02:45.6]} 12. Rg1 {[%clk 0:03:10.4]}
12... g6 {[%clk 0:02:46.1]} 13. Bc4 {[%clk 0:03:10.6]} 13... Nge7 {[%clk
0:02:44.6]} 14. Ng5 {[%clk 0:03:09.8]} 14... O-O {[%clk 0:02:45.4]} 15. Nfe4
{[%clk 0:03:11]} 15... Kg7 {[%clk 0:02:45.3]} 16. d3 {[%clk 0:03:09.9]} 16... a6
{[%clk 0:02:44.8]} 17. a4 {[%clk 0:03:10.6]} 17... Nb4 {[%clk 0:02:44.3]} 18.
Rg2 {[%clk 0:03:03.9]} 18... h6 {[%clk 0:02:44.7]} 19. Nf3 {[%clk 0:03:03.3]}
19... Bh3 {[%clk 0:02:38.9]} 20. Rf2 {[%clk 0:02:58.7]} 20... b5 {[%clk
0:02:20.2]} 21. axb5 {[%clk 0:02:53.2]} 21... axb5 {[%clk 0:02:21]} 22. Rxa8
{[%clk 0:02:54.7]} 22... Rxa8 {[%clk 0:02:21.4]} 23. Bxb5 {[%clk 0:02:56.2]}
23... Ra1 {[%clk 0:02:21.9]} 24. Kd1 {[%clk 0:02:55.6]} 24... Na2 {[%clk
0:02:22.5]} 25. Nxc5 {[%clk 0:02:46.3]} 25... Rxc1+ {[%clk 0:02:22.4]} 26. Kd2
{[%clk 0:02:46.8]} 26... Ba5+ {[%clk 0:02:23.1]} 27. c3 {[%clk 0:02:45]} 27...
dxc3+ {[%clk 0:02:16.1]} 28. bxc3 {[%clk 0:02:45.3]} 28... Bxc3+ {[%clk
0:02:16.2]} 29. Ke2 {[%clk 0:02:33.8]} 29... Bg4 {[%clk 0:02:11.5]} 30. Ne4
{[%clk 0:02:00.5]} 30... Re1# {[%clk 0:02:06.7]} 0-1

[Event "*** Titled Tuesday Blitz"]
[Site "Chess.com"]
[Date "2018.04.03"]
[Round "7"]
[White "amintabatabaei"]
[Black "Muracle"]
[Result "1-0"]
[WhiteElo "2657"]
[BlackElo "2472"]
[TimeControl "180+2"]
[EndTime "14:28:21 PDT"]
[Termination "amintabatabaei won by resignation"]

1. e4 {[%clk 0:03:01.9]} 1... g6 {[%clk 0:02:54.9]} 2. d4 {[%clk 0:03:01.5]}
2... Bg7 {[%clk 0:02:55.4]} 3. Nf3 {[%clk 0:02:58.6]} 3... d6 {[%clk 0:02:54.2]}
4. Bg5 {[%clk 0:02:59.1]} 4... a6 {[%clk 0:02:53.8]} 5. Nbd2 {[%clk 0:02:58.7]}
5... Nd7 {[%clk 0:02:53.1]} 6. c3 {[%clk 0:02:59]} 6... b6 {[%clk 0:02:52.1]} 7.
Bc4 {[%clk 0:02:50.8]} 7... Bb7 {[%clk 0:02:50.2]} 8. Qe2 {[%clk 0:02:51.8]}
8... h6 {[%clk 0:02:49.8]} 9. Bh4 {[%clk 0:02:51.9]} 9... g5 {[%clk 0:02:50.9]}
10. Bg3 {[%clk 0:02:52.6]} 10... e6 {[%clk 0:02:51.9]} 11. a4 {[%clk 0:02:48.2]}
11... Ne7 {[%clk 0:02:51.6]} 12. Bd3 {[%clk 0:02:33.7]} 12... O-O {[%clk
0:02:50.3]} 13. e5 {[%clk 0:02:33.9]} 13... dxe5 {[%clk 0:02:47.3]} 14. Nxe5
{[%clk 0:02:35.8]} 14... Nxe5 {[%clk 0:02:43.7]} 15. Bxe5 {[%clk 0:02:35.7]}
15... Bxe5 {[%clk 0:02:31.6]} 16. Qxe5 {[%clk 0:02:37.6]} 16... Qd6 {[%clk
0:02:32.4]} 17. Qxd6 {[%clk 0:02:18.4]} 17... cxd6 {[%clk 0:02:32.4]} 18. Be4
{[%clk 0:02:20.3]} 18... Bxe4 {[%clk 0:02:23.1]} 19. Nxe4 {[%clk 0:02:22.2]}
19... Rfd8 {[%clk 0:02:24]} 20. h4 {[%clk 0:02:20.6]} 20... d5 {[%clk
0:02:20.5]} 21. Nf6+ {[%clk 0:02:15.5]} 21... Kg7 {[%clk 0:02:20.9]} 22. hxg5
{[%clk 0:02:16.2]} 22... hxg5 {[%clk 0:02:20.2]} 23. Ng4 {[%clk 0:02:18.1]}
23... Nc6 {[%clk 0:02:16.2]} 24. Ke2 {[%clk 0:02:16.7]} 24... b5 {[%clk
0:02:13.7]} 25. Rh5 {[%clk 0:02:15.5]} 25... Rh8 {[%clk 0:01:35.9]} 26. Rxg5+
{[%clk 0:02:10]} 26... Kf8 {[%clk 0:01:32.5]} 27. axb5 {[%clk 0:02:11.9]} 1-0